bitfinex/quotes_BTCUSD_20240721
["timestamp","ask_amount","ask_price","bid_price","bid_amount"]
[1721543363518,0.09127,66911.0,66910.0,0.85370879]
[1721543366043,0.20197,66911.0,66910.0,0.74806814]
[1721543366609,0.20197,66911.0,66910.0,0.74820596]
[1721543369750,0.20197,66911.0,66910.0,0.625817]
[1721543369952,0.15197,66911.0,66910.0,0.74820128]
[1721543373084,0.15197,66911.0,66910.0,0.028]
[1721543373085,0.32914479,66911.0,66910.0,0.028]
[1721543373205,0.87470088,66911.0,66910.0,0.028]
[1721543373403,1.11382388,66911.0,66910.0,0.028]
[1721543374023,0.87470088,66911.0,66910.0,0.014]
[1721543374220,0.98588535,66911.0,66910.0,0.014]
[1721543374425,0.98588535,66911.0,66910.0,0.013]
[1721543374626,0.87470088,66911.0,66910.0,0.02]
[1721543374823,0.98775867,66911.0,66910.0,0.02]
[1721543375074,1.09894205,66911.0,66910.0,0.02]
[1721543375445,0.98588426,66911.0,66910.0,0.02]
[1721543376030,0.98588426,66911.0,66910.0,0.007]
[1721543376249,0.98438465,66911.0,66910.0,0.014]
[1721543376451,0.86708226,66911.0,66910.0,0.014]
[1721543376655,0.87319652,66911.0,66910.0,0.014]
[1721543377395,0.96208832,66911.0,66910.0,0.014]
[1721543378125,0.87319652,66911.0,66910.0,0.014]
[1721543379432,0.96205831,66911.0,66910.0,0.014]
[1721543381241,0.87319652,66911.0,66910.0,0.014]
[1721543381644,0.75592879,66911.0,66910.0,0.014]
[1721543381845,0.87263791,66911.0,66910.0,0.014]
[1721543382421,0.80453791,66911.0,66910.0,0.014]
[1721543382670,0.68782879,66911.0,66910.0,0.014]
[1721543382875,0.75592879,66911.0,66910.0,0.014]
[1721543383648,0.82254798,66911.0,66910.0,0.014]
[1721543385146,0.77254798,66911.0,66910.0,0.014]
[1721543385503,0.82254798,66911.0,66910.0,0.014]
[1721543385846,0.75592879,66911.0,66910.0,0.014]
[1721543386717,0.51680579,66911.0,66910.0,0.014]
[1721543386930,0.20197,66911.0,66910.0,0.014]
[1721543387130,0.00837,66911.0,66910.0,0.44079]
[1721543387353,0.00837,66911.0,66910.0,0.5149648]
[1721543387951,0.00837,66911.0,66910.0,0.63638533]
[1721543388096,0.00837,66911.0,66910.0,0.63638319]
[1721543388524,0.00837,66911.0,66910.0,0.56220839]
[1721543388738,0.00837,66911.0,66910.0,0.56233695]
[1721543389122,0.13554479,66911.0,66910.0,0.37269]
[1721543389529,0.08554479,66911.0,66910.0,0.37269]
[1721543391992,0.08554479,66911.0,66910.0,0.37294829]
[1721543392196,0.13554479,66911.0,66910.0,0.37294829]
[1721543392655,0.13554479,66911.0,66910.0,0.49445225]
[1721543392859,0.13554479,66911.0,66910.0,0.37294829]
[1721543393407,0.13554479,66911.0,66910.0,0.49445255]
[1721543395615,0.13554479,66911.0,66910.0,0.49436354]
[1721543397531,0.08554479,66911.0,66910.0,0.49436354]
[1721543398902,0.13554479,66911.0,66910.0,0.49436354]
[1721543399280,0.08554479,66911.0,66910.0,0.49436354]
[1721543400455,0.00837,66911.0,66910.0,0.84859054]
[1721543401228,0.00837,66911.0,66910.0,0.84930147]
[1721543401604,0.00837,66911.0,66910.0,0.73420147]
[1721543402259,0.00837,66911.0,66910.0,0.49507447]
[1721543402503,0.24817,66911.0,66910.0,0.13638447]
[1721543403093,0.24817,66911.0,66910.0,0.01425829]
[1721543403697,0.40255174,66911.0,66910.0,0.01425829]
[1721543403912,1.35292231,66911.0,66910.0,0.01425829]
[1721543404120,1.35005961,66911.0,66910.0,0.01425829]
[1721543404323,1.41793898,66911.0,66910.0,0.01425829]
[1721543404721,1.30736111,66911.0,66910.0,0.01425829]
[1721543404925,1.41664692,66911.0,66910.0,0.00725829]
[1721543405204,1.57099649,66911.0,66910.0,0.00725829]
[1721543405410,1.57199649,66911.0,66910.0,0.00025829]
[1721543405612,1.57199649,66911.0,66910.0,0.00525829]
[1721543406216,1.74723639,66911.0,66910.0,0.00025829]
[1721543406415,1.97971683,66911.0,66910.0,0.00025829]
[1721543406673,2.14788338,66911.0,66910.0,0.00025829]
[1721543406882,2.01464705,66911.0,66910.0,0.00025829]
[1721543407285,1.73719469,66911.0,66910.0,0.00025828]
[1721543407500,2.00976792,66911.0,66910.0,0.00025828]
[1721543407701,2.14289865,66911.0,66910.0,0.00025828]
[1721543407950,1.97533715,66911.0,66910.0,0.00025828]
[1721543408154,1.92533715,66911.0,66910.0,0.00025828]
[1721543408358,1.97533715,66911.0,66910.0,0.00025828]
[1721543408889,2.06533715,66911.0,66910.0,0.00025828]
[1721543409126,1.97533715,66911.0,66910.0,0.00025828]
[1721543409326,2.06533715,66911.0,66910.0,0.00025828]
[1721543409517,1.97533715,66911.0,66910.0,0.00025828]
[1721543409908,1.97533715,66911.0,66889.0,0.000924]
[1721543409909,0.1,66898.0,66889.0,0.000924]
[1721543410116,1.28457347,66898.0,66889.0,0.000924]
[1721543410325,0.458797,66890.0,66889.0,0.000924]
[1721543410547,0.99976187,66890.0,66889.0,0.000924]
[1721543410751,1.13252479,66890.0,66889.0,0.000924]
[1721543411074,1.27621445,66890.0,66889.0,0.000924]
[1721543411297,1.67291245,66890.0,66889.0,0.000924]
[1721543411489,1.95690342,66890.0,66889.0,0.000924]
[1721543411727,1.97913419,66890.0,66889.0,0.000924]
[1721543411924,1.86822713,66890.0,66889.0,0.000924]
[1721543412146,1.98614028,66890.0,66889.0,0.000924]
[1721543412325,2.03614028,66890.0,66889.0,0.000924]
[1721543412554,2.29071907,66890.0,66889.0,0.000924]
[1721543412707,2.42380755,66890.0,66889.0,0.000924]
[1721543412916,2.29071907,66890.0,66889.0,0.000924]
[1721543413328,2.1810236,66890.0,66889.0,0.000924]
[1721543413527,2.28217071,66890.0,66889.0,0.000924]
[1721543413705,2.37317066,66890.0,66889.0,0.000924]
[1721543413906,2.35779027,66890.0,66889.0,0.000924]
[1721543414130,0.604694,66872.0,66871.0,0.000924]
[1721543414329,0.91717574,66872.0,66871.0,0.000924]
[1721543414529,1.30570174,66872.0,66871.0,0.000924]
[1721543415932,0.05,66874.0,66871.0,0.130524]
[1721543416149,0.05,66874.0,66871.0,0.000924]
[1721543416356,0.458894,66872.0,66871.0,0.000924]
[1721543416752,0.461894,66872.0,66871.0,0.000924]
[1721543416952,0.85553874,66872.0,66871.0,0.000924]
[1721543417209,0.85253874,66872.0,66871.0,0.000924]
[1721543417563,1.00688831,66872.0,66871.0,0.000924]
[1721543418406,0.76762531,66872.0,66871.0,0.000924]
[1721543418566,0.61327574,66872.0,66871.0,0.000924]
[1721543418979,0.1,66872.0,66871.0,0.000924]
[1721543419201,0.101,66872.0,66871.0,0.000924]
[1721543419757,0.104,66872.0,66871.0,0.120557]
[1721543419970,0.104,66872.0,66871.0,0.000924]
[1721543420188,0.104,66872.0,66871.0,0.120557]
[1721543420409,0.104,66872.0,66871.0,0.000924]
[1721543420611,0.004,66872.0,66871.0,0.599089]
[1721543420783,0.004,66872.0,66871.0,0.6829254]
[1721543421026,0.004,66872.0,66871.0,0.359823]
[1721543421767,0.001,66872.0,66871.0,0.359823]
[1721543422051,0.004,66872.0,66871.0,0.599089]
[1721543422308,0.001,66872.0,66871.0,0.599089]
[1721543422547,0.001,66872.0,66871.0,0.603089]
[1721543422858,0.05,66872.0,66871.0,0.655489]
[1721543423280,0.051,66872.0,66871.0,0.655489]
[1721543423766,0.05,66872.0,66871.0,0.655489]
[1721543424000,0.05,66872.0,66871.0,0.661489]
[1721543424485,0.05,66872.0,66871.0,0.369823]
[1721543424728,0.1,66872.0,66871.0,0.369823]
[1721543424969,0.05,66872.0,66871.0,0.369823]
[1721543425765,0.1,66872.0,66871.0,0.369823]
[1721543426026,0.05,66872.0,66871.0,0.369823]
[1721543427058,0.1,66872.0,66871.0,0.369823]
[1721543427321,0.1821,66872.0,66871.0,0.010924]
[1721543432761,0.73963582,66872.0,66871.0,0.010924]
[1721543433265,0.97889882,66872.0,66871.0,0.010924]
[1721543434257,1.96872482,66872.0,66871.0,0.010924]
[1721543434736,1.98410173,66872.0,66871.0,0.010924]
[1721543434989,1.82872482,66872.0,66871.0,0.004924]
[1721543435228,1.83072482,66872.0,66871.0,0.004924]
[1721543435699,1.83072482,66872.0,66871.0,0.000924]
[1721543435700,1.96872482,66872.0,66871.0,0.000924]
[1721543436167,1.97372482,66872.0,66871.0,0.001924]
[1721543436406,1.98910064,66872.0,66871.0,0.001924]
[1721543436646,0.05,66849.0,66848.0,0.002794]
[1721543436919,0.262671,66850.0,66847.0,0.04911932]
[1721543436920,0.05,66848.0,66847.0,0.04911932]
[1721543437157,0.262671,66850.0,66842.0,0.009196]
[1721543437158,0.05,66845.0,66842.0,0.009196]
[1721543437674,0.1,66843.0,66842.0,0.009196]
[1721543438908,0.1,66843.0,66842.0,0.023196]
[1721543439162,0.219683,66843.0,66842.0,0.023196]
[1721543439433,0.219683,66843.0,66842.0,0.009196]
[1721543439668,0.75643074,66843.0,66842.0,0.018196]
[1721543439930,0.243,66843.0,66842.0,0.018196]
[1721543440401,0.4109183,66843.0,66842.0,0.009196]
[1721543440632,0.4109183,66843.0,66842.0,0.018196]
[1721543440874,0.4119183,66843.0,66842.0,0.029196]
[1721543441343,0.4109183,66843.0,66842.0,0.018196]
[1721543441605,0.6512843,66843.0,66842.0,0.029196]
[1721543441902,0.80566604,66843.0,66842.0,0.029196]
[1721543442158,0.80466604,66843.0,66842.0,0.018196]
[1721543442427,0.80466604,66843.0,66842.0,0.014196]
[1721543442697,0.80466604,66843.0,66842.0,0.017196]
[1721543442698,1.44089804,66843.0,66842.0,0.017196]
[1721543442922,1.44089804,66843.0,66842.0,0.014196]
[1721543443446,1.44089804,66843.0,66842.0,0.018196]
[1721543443687,1.44089804,66843.0,66842.0,0.014196]
[1721543443917,1.53089804,66843.0,66842.0,0.012196]
[1721543444156,1.53089804,66843.0,66842.0,0.017196]
[1721543444797,1.53089804,66843.0,66842.0,0.012196]
[1721543445010,1.44089804,66843.0,66842.0,0.016196]
[1721543445234,1.53089804,66843.0,66842.0,0.016196]
[1721543445447,1.58089804,66843.0,66842.0,0.016196]
[1721543445662,1.44089804,66843.0,66842.0,0.016196]
[1721543446516,1.49089804,66843.0,66842.0,0.016196]
[1721543448262,1.58089804,66843.0,66842.0,0.016196]
[1721543448878,1.68089804,66843.0,66842.0,0.016196]
[1721543449770,1.97026404,66843.0,66842.0,0.013196]
[1721543450186,1.98226404,66843.0,66842.0,0.010196]
[1721543450399,1.98226404,66843.0,66842.0,0.011196]
[1721543450612,1.99126404,66843.0,66842.0,0.011196]
[1721543451056,1.98226404,66843.0,66842.0,0.010196]
[1721543451489,1.99526404,66843.0,66842.0,0.011196]
[1721543452152,1.98326404,66843.0,66842.0,0.010196]
[1721543452579,1.98326404,66843.0,66842.0,0.011196]
[1721543452580,1.99526404,66843.0,66842.0,0.011196]
[1721543453216,2.01826404,66843.0,66842.0,0.011196]
[1721543456506,0.477197,66835.0,66834.0,0.009196]
[1721543456713,1.83093827,66835.0,66834.0,0.009196]
[1721543456928,2.61701224,66835.0,66834.0,0.009196]
[1721543457452,2.65604019,66835.0,66834.0,0.009196]
[1721543457655,2.66127232,66835.0,66834.0,0.009196]
[1721543457871,2.67427232,66835.0,66834.0,0.010196]
[1721543458321,2.66127232,66835.0,66834.0,0.009196]
[1721543458766,2.67427232,66835.0,66834.0,0.010196]
[1721543459000,2.72730027,66835.0,66834.0,0.010196]
[1721543459222,2.17075896,66835.0,66834.0,0.010196]
[1721543459478,2.04655348,66835.0,66834.0,0.010196]
[1721543459689,2.13655348,66835.0,66834.0,0.010196]
[1721543460165,2.10955348,66835.0,66834.0,0.009196]
[1721543460382,1.58026374,66835.0,66834.0,0.009196]
[1721543460595,1.59426374,66835.0,66834.0,0.009196]
[1721543460808,1.74861331,66835.0,66834.0,0.009196]
[1721543461012,1.73461331,66835.0,66834.0,0.009196]
[1721543461439,1.53326374,66835.0,66834.0,0.009196]
[1721543461649,1.54726374,66835.0,66834.0,0.009196]
[1721543461860,1.53326374,66835.0,66834.0,0.009196]
[1721543462284,1.56126374,66835.0,66834.0,0.009196]
[1721543464023,1.32186874,66835.0,66834.0,0.009196]
[1721543464242,1.47621831,66835.0,66834.0,0.009196]
[1721543464450,1.32186874,66835.0,66834.0,0.009196]
[1721543464658,0.91297374,66835.0,66834.0,0.009196]
[1721543464900,0.67357874,66835.0,66834.0,0.009196]
[1721543465134,0.67357874,66835.0,66834.0,0.072096]
[1721543465135,0.25438174,66835.0,66834.0,0.072096]
[1721543465391,0.28238174,66835.0,66834.0,0.072096]
[1721543466080,0.40207874,66835.0,66834.0,0.072096]
[1721543466291,0.41207874,66835.0,66834.0,0.072096]
[1721543466502,0.38807874,66835.0,66834.0,0.072096]
[1721543466935,0.37607874,66835.0,66834.0,0.072096]
[1721543467143,0.44534279,66835.0,66834.0,0.009196]
[1721543467368,0.45234279,66835.0,66834.0,0.009196]
[1721543467809,0.102,66835.0,66834.0,0.128895]
[1721543468024,0.102,66835.0,66834.0,0.009196]
[1721543468233,0.102,66835.0,66834.0,0.010196]
[1721543468683,0.1,66835.0,66834.0,0.009196]
[1721543468930,0.05,66835.0,66834.0,0.126396]
[1721543469143,0.051,66835.0,66834.0,0.246095]
[1721543469356,0.05,66835.0,66834.0,0.485494]
[1721543470673,0.05,66835.0,66834.0,0.486494]
[1721543471316,0.05,66835.0,66834.0,0.485494]
[1721543471525,0.05,66835.0,66834.0,0.726893]
[1721543472386,0.00084,66838.0,66837.0,0.239388]
[1721543472571,0.00084,66838.0,66837.0,0.65847]
[1721543472827,0.00084,66838.0,66837.0,0.897858]
[1721543473039,0.00084,66838.0,66837.0,0.952158]
[1721543473675,0.00184,66838.0,66837.0,0.955158]
[1721543473889,0.00084,66838.0,66837.0,0.952158]
[1721543474323,0.00184,66838.0,66837.0,0.955158]
[1721543474745,0.00284,66838.0,66837.0,1.08220891]
[1721543474964,0.00284,66838.0,66837.0,1.59541405]
[1721543475217,0.00284,66838.0,66837.0,1.47436314]
[1721543475423,0.00284,66838.0,66837.0,1.58931433]
[1721543475424,0.00184,66838.0,66837.0,1.58931433]
[1721543475602,0.00284,66838.0,66837.0,1.59531433]
[1721543476296,0.05,66851.0,66850.0,0.598352]
[1721543476514,0.05,66852.0,66851.0,0.119669]
[1721543476720,0.05,66852.0,66851.0,0.359007]
[1721543476935,0.05,66853.0,66852.0,0.119667]
[1721543477147,0.05,66853.0,66852.0,0.359001]
[1721543477362,0.05,66853.0,66852.0,0.651835]
[1721543477800,0.05,66855.0,66854.0,0.35899]
[1721543478230,0.05,66855.0,66854.0,0.598317]
[1721543480639,0.002,66855.0,66854.0,0.9328602]
[1721543480847,0.002,66855.0,66854.0,0.9928602]
[1721543481531,0.05,66857.0,66856.0,0.5983]
[1721543481742,0.05,66857.0,66856.0,0.6583]
[1721543482603,0.05,66857.0,66856.0,0.7118]
[1721543482824,0.05,66857.0,66856.0,0.95112]
[1721543483886,0.05,66857.0,66856.0,0.96412]
[1721543484146,0.051,66857.0,66856.0,0.96412]
[1721543484777,0.002,66857.0,66856.0,0.97012]
[1721543484987,0.002,66857.0,66856.0,1.067132]
[1721543485858,0.002,66857.0,66856.0,0.97012]
[1721543487399,0.002,66857.0,66856.0,1.14750174]
[1721543487614,0.001,66857.0,66856.0,1.13450174]
[1721543488150,0.07717479,66866.0,66865.0,0.59822]
[1721543488790,0.07717479,66866.0,66865.0,0.60647618]
[1721543489443,0.07717479,66866.0,66865.0,0.61147618]
[1721543489878,0.12717479,66866.0,66865.0,0.61447618]
[1721543490096,0.12717479,66866.0,66865.0,0.62001754]
[1721543490531,0.07717479,66866.0,66865.0,0.62001754]
[1721543491877,0.07917479,66866.0,66865.0,0.62001754]
[1721543493383,0.002,66866.0,66865.0,0.62001754]
[1721543493604,0.002,66866.0,66865.0,0.81994879]
[1721543493829,0.002,66866.0,66865.0,0.73401754]
[1721543494266,0.002,66866.0,66865.0,0.62001754]
[1721543494510,0.17917479,66866.0,66865.0,0.02179754]
[1721543497627,0.18117479,66866.0,66865.0,0.02179754]
[1721543500608,0.30200607,66866.0,66865.0,0.02179754]
[1721543500868,1.11749781,66866.0,66865.0,0.008]
[1721543501098,1.35678181,66866.0,66865.0,0.008]
[1721543501972,1.35678181,66866.0,66865.0,0.003]
[1721543502178,1.35878181,66866.0,66865.0,0.003]
[1721543502595,1.36078181,66866.0,66865.0,0.003]
[1721543502801,0.1,66854.0,66853.0,0.002794]
[1721543503010,0.1,66854.0,66853.0,0.0166561]
[1721543503011,0.61337174,66854.0,66853.0,0.0166561]
[1721543503246,0.61337174,66854.0,66852.0,0.04927941]
[1721543503247,0.408996,66853.0,66852.0,0.04927941]
[1721543503484,0.61337774,66853.0,66852.0,0.04927941]
[1721543503685,0.05,66845.0,66844.0,0.002794]
[1721543503889,0.05,66845.0,66844.0,0.12040413]
[1721543504093,0.05,66845.0,66844.0,0.13431404]
[1721543504306,0.05,66848.0,66844.0,0.13431404]
[1721543504755,0.05,66849.0,66844.0,0.13431404]
[1721543504756,0.282579,66845.0,66844.0,0.02690991]
[1721543504971,0.283579,66845.0,66844.0,0.02690991]
[1721543505178,0.283579,66845.0,66844.0,0.013]
[1721543505408,0.838697,66845.0,66844.0,0.013]
[1721543505620,0.95421848,66845.0,66844.0,0.013]
[1721543506033,0.95421848,66845.0,66844.0,0.019]
[1721543506240,0.95321848,66845.0,66844.0,0.006]
[1721543506455,0.05,66835.0,66833.0,0.002794]
[1721543506663,0.05,66836.0,66832.0,0.4747]
[1721543506872,0.05,66835.0,66834.0,0.14287626]
[1721543507121,0.05,66841.0,66834.0,0.02317726]
[1721543507312,0.05,66840.0,66838.0,0.119691]
[1721543507522,0.001,66845.0,66844.0,0.359044]
[1721543507948,0.001,66845.0,66844.0,0.6123639]
[1721543508157,0.05,66851.0,66844.0,0.0755569]
[1721543508390,0.05,66851.0,66845.0,0.002794]
[1721543508590,0.315708,66860.0,66844.0,0.0755569]
[1721543508591,0.05,66849.0,66848.0,0.119672]
[1721543508799,0.05,66849.0,66848.0,0.13361876]
[1721543509002,0.05,66849.0,66848.0,0.01394676]
[1721543509003,0.1,66849.0,66848.0,0.01394676]
[1721543509220,0.1,66849.0,66838.0,0.0535]
[1721543509221,0.05,66846.0,66839.0,0.0616]
[1721543509430,0.05,66842.0,66840.0,0.13666024]
[1721543509660,0.05,66842.0,66841.0,0.119687]
[1721543509848,0.05,66842.0,66841.0,0.13366322]
[1721543510056,0.1,66842.0,66841.0,0.01397622]
[1721543510268,0.05,66842.0,66839.0,0.0616]
[1721543510473,0.1,66846.0,66841.0,0.01396544]
[1721543510695,0.05,66845.0,66840.0,0.25334775]
[1721543510976,0.1,66846.0,66842.0,0.13364364]
[1721543511116,0.05,66846.0,66845.0,0.119678]
[1721543511522,0.05,66846.0,66845.0,0.1336217]
[1721543511943,0.05,66850.0,66849.0,0.119672]
[1721543512150,0.119655,66859.0,66849.0,0.119672]
[1721543512151,0.05,66861.0,66849.0,0.21608174]
[1721543512357,0.1,66861.0,66860.0,0.119653]
[1721543512770,0.1,66861.0,66860.0,0.13352088]
[1721543512968,0.1,66861.0,66860.0,0.01386788]
[1721543513382,0.05,66859.0,66858.0,0.119656]
[1721543513594,0.07717479,66864.0,66851.0,0.239337]
[1721543513595,0.05,66856.0,66851.0,0.239337]
[1721543513792,0.05,66856.0,66855.0,0.119661]
[1721543515020,0.002,66856.0,66855.0,0.358984]
[1721543515227,0.004,66856.0,66855.0,0.358984]
[1721543515427,0.054,66856.0,66855.0,0.358984]
[1721543515639,0.054,66856.0,66855.0,0.119661]
[1721543515838,0.004,66856.0,66855.0,0.358984]
[1721543516049,0.005,66856.0,66855.0,0.358984]
[1721543516458,0.1155,66856.0,66855.0,0.358984]
[1721543516671,0.05,66848.0,66844.0,0.119681]
[1721543516923,0.05,66848.0,66834.0,0.248593]
[1721543516924,0.536522,66848.0,66834.0,0.009196]
[1721543517157,0.05,66836.0,66834.0,0.009196]
[1721543517357,0.05,66836.0,66834.0,0.05861305]
[1721543517584,0.05,66836.0,66834.0,0.17831205]
[1721543517783,0.05,66836.0,66834.0,0.128895]
[1721543518008,0.12717479,66835.0,66834.0,0.009196]
[1721543518214,0.17717479,66835.0,66834.0,0.009196]
[1721543518482,0.20051748,66835.0,66834.0,0.009196]
[1721543518648,0.32021448,66835.0,66834.0,0.009196]
[1721543519056,0.1828,66835.0,66834.0,0.009196]
[1721543519268,0.1838,66835.0,66834.0,0.021196]
[1721543519755,0.1338,66835.0,66834.0,0.021196]
[1721543519933,0.001,66835.0,66834.0,0.140895]
[1721543520142,0.001,66835.0,66834.0,0.1548776]
[1721543520344,0.001,66835.0,66834.0,0.0351786]
[1721543520965,0.001,66835.0,66834.0,0.1548776]
[1721543521175,0.002,66835.0,66834.0,0.1688776]
[1721543522023,0.002,66835.0,66834.0,1.0032746]
[1721543522271,0.002,66835.0,66834.0,1.30476043]
[1721543522483,0.002,66835.0,66834.0,1.15037869]
[1721543522697,0.002,66835.0,66834.0,0.91097969]
[1721543522909,0.002,66835.0,66834.0,1.30476043]
[1721543523123,0.002,66835.0,66834.0,1.45911]
[1721543524080,0.002,66835.0,66834.0,1.01186143]
[1721543524820,0.002,66835.0,66834.0,0.0491786]
[1721543524821,0.052,66835.0,66834.0,0.0491786]
[1721543525003,0.052,66835.0,66834.0,0.17336181]
[1721543525224,0.052,66835.0,66834.0,0.0491786]
[1721543525456,0.102,66835.0,66834.0,0.0491786]
[1721543525689,0.052,66835.0,66834.0,0.035196]
[1721543525929,0.102,66835.0,66834.0,0.035196]
[1721543526334,0.102,66835.0,66834.0,0.04955267]
[1721543526594,0.124169,66835.0,66834.0,0.04955267]
[1721543526835,0.102,66835.0,66834.0,0.04955267]
[1721543530898,0.104,66835.0,66834.0,0.04955267]
[1721543531148,0.223697,66835.0,66834.0,0.04955267]
[1721543531383,0.841387,66835.0,66834.0,0.04955267]
[1721543531613,0.841387,66835.0,66834.0,0.035196]
[1721543531614,1.07990744,66835.0,66834.0,0.035196]
[1721543532283,1.07990744,66835.0,66834.0,0.023196]
[1721543532284,1.07890744,66835.0,66834.0,0.023196]
[1721543532520,1.31930244,66835.0,66834.0,0.033196]
[1721543533902,1.31830244,66835.0,66834.0,0.019196]
[1721543534120,1.31930244,66835.0,66834.0,0.027196]
[1721543535670,1.66680244,66835.0,66834.0,0.027196]
[1721543536328,1.66880244,66835.0,66834.0,0.027196]
[1721543536801,1.66880244,66835.0,66829.0,0.000924]
[1721543536802,1.573758,66830.0,66829.0,0.000924]
[1721543537020,1.573758,66830.0,66822.0,0.05864229]
[1721543537021,0.906095,66823.0,66822.0,0.05864229]
[1721543537247,1.75542753,66823.0,66822.0,0.009196]
[1721543537466,1.88340779,66823.0,66822.0,0.009196]
[1721543537931,1.9275666,66823.0,66822.0,0.009196]
[1721543538366,1.84740779,66823.0,66822.0,0.010196]
[1721543538590,1.59396979,66823.0,66822.0,0.009196]
[1721543538814,1.65796979,66823.0,66822.0,0.010196]
[1721543539067,1.67196979,66823.0,66822.0,0.011196]
[1721543539288,1.67196979,66823.0,66813.0,0.4747]
[1721543539289,1.284447,66822.0,66813.0,0.4747]
[1721543539507,1.62296744,66822.0,66809.0,0.04954492]
[1721543539721,1.71296744,66822.0,66809.0,0.04954492]
[1721543540154,1.66296744,66822.0,66809.0,0.04954492]
[1721543540428,1.41546744,66822.0,66809.0,0.04954492]
[1721543540649,1.09188674,66822.0,66809.0,0.04954492]
[1721543540869,1.09188674,66822.0,66811.0,0.004794]
[1721543540870,0.99188674,66822.0,66811.0,0.004794]
[1721543541318,0.372621,66822.0,66821.0,0.010196]
[1721543541542,0.078,66822.0,66821.0,0.009196]
[1721543541775,0.042,66822.0,66821.0,0.129918]
[1721543542000,0.028,66822.0,66821.0,0.38152937]
[1721543542432,0.042,66822.0,66821.0,0.38152937]
[1721543542647,0.042,66822.0,66821.0,0.38052937]
[1721543542648,0.014,66822.0,66821.0,0.38052937]
[1721543542863,0.05,66824.0,66823.0,0.119719]
[1721543543085,0.05,66824.0,66821.0,0.26180737]
[1721543543086,0.1,66831.0,66824.0,0.0656]
[1721543543311,0.0123705,66830.0,66825.0,0.002794]
[1721543543538,0.0123705,66830.0,66828.0,0.119709]
[1721543543752,0.05,66831.0,66828.0,0.119709]
[1721543543964,0.05,66831.0,66829.0,0.01210859]
[1721543545274,0.05,66830.0,66829.0,0.01210859]
[1721543545717,0.05,66830.0,66829.0,0.01410859]
[1721543545718,0.219706,66830.0,66829.0,0.01410859]
[1721543545953,0.219706,66830.0,66829.0,0.01210859]
[1721543546165,0.05,66825.0,66822.0,0.11972]
[1721543546387,0.05,66825.0,66823.0,0.002794]
[1721543546861,0.05,66824.0,66823.0,0.122513]
[1721543547084,0.05,66824.0,66823.0,0.119719]
[1721543547953,0.06,66824.0,66823.0,0.119719]
[1721543548227,0.06,66824.0,66821.0,0.009196]
[1721543548228,0.459163,66822.0,66821.0,0.009196]
[1721543548453,0.537863,66822.0,66821.0,0.009196]
[1721543548900,0.298421,66822.0,66821.0,0.009196]
[1721543550294,0.39770727,66822.0,66821.0,0.009196]
[1721543550511,0.299421,66822.0,66821.0,0.015196]
[1721543550997,0.298421,66822.0,66821.0,0.009196]
[1721543551218,0.299421,66822.0,66821.0,0.015196]
[1721543551441,0.300421,66822.0,66821.0,0.016196]
[1721543551660,0.1797,66822.0,66821.0,0.010196]
[1721543551874,0.1797,66822.0,66821.0,0.014196]
[1721543552103,0.05,66822.0,66821.0,0.02533899]
[1721543552325,0.101,66822.0,66821.0,0.02633899]
[1721543554332,0.2805556,66822.0,66821.0,0.02633899]
[1721543554777,0.051,66822.0,66821.0,0.02633899]
[1721543555655,0.101,66822.0,66821.0,0.02633899]
[1721543556819,0.051,66822.0,66821.0,0.14606099]
[1721543557047,0.101,66822.0,66821.0,0.02633899]
[1721543557276,0.2528,66822.0,66821.0,0.02633899]
[1721543557690,0.2528,66822.0,66821.0,0.014196]
[1721543558139,0.051,66822.0,66821.0,0.02633899]
[1721543558561,0.101,66822.0,66821.0,0.02633899]
[1721543558784,0.051,66822.0,66821.0,0.014196]
[1721543559435,0.101,66822.0,66821.0,0.014196]
[1721543559871,0.001,66822.0,66821.0,0.373363]
[1721543560085,0.051,66822.0,66821.0,0.373363]
[1721543560304,0.051,66822.0,66821.0,0.44650599]
[1721543562578,0.001,66822.0,66821.0,0.44650599]
[1721543562813,0.001,66822.0,66821.0,0.81022214]
[1721543563449,0.001,66822.0,66821.0,0.74922214]
[1721543565224,0.001,66822.0,66821.0,0.62495099]
[1721543565444,0.001,66822.0,66821.0,0.74921615]
[1721543565891,0.001,66822.0,66821.0,0.98866115]
[1721543566104,0.001,66822.0,66821.0,1.01166115]
[1721543566775,0.05,66831.0,66830.0,0.119706]
[1721543567391,0.05,66831.0,66830.0,0.13180445]
[1721543568285,0.05,66831.0,66830.0,0.37121745]
[1721543568715,0.05,66831.0,66830.0,0.37621745]
[1721543569177,0.051,66831.0,66830.0,0.37721745]
[1721543569381,0.051,66831.0,66830.0,0.38221745]
[1721543569800,0.05,66831.0,66830.0,0.37621745]
[1721543570010,0.05,66831.0,66830.0,0.38221745]
[1721543570250,0.051,66831.0,66830.0,0.38221745]
[1721543570459,0.051,66831.0,66830.0,0.50641183]
[1721543571585,0.05,66831.0,66830.0,0.5003604]
[1721543571801,0.051,66831.0,66830.0,0.5063604]
[1721543572431,0.05,66831.0,66830.0,0.5003604]
[1721543572639,0.051,66831.0,66830.0,0.5013604]
[1721543573090,0.05,66831.0,66830.0,0.5003604]
[1721543573512,0.051,66831.0,66830.0,0.5063604]
[1721543574817,0.051,66831.0,66830.0,0.5064099]
[1721543576392,0.001,66831.0,66830.0,0.7458229]
[1721543576608,0.001,66831.0,66830.0,0.9852359]
[1721543576862,0.001,66831.0,66830.0,1.0508359]
[1721543577792,0.001,66831.0,66830.0,0.92664345]
[1721543578014,0.004,66835.0,66834.0,0.598497]
[1721543578219,0.004,66835.0,66834.0,0.72258806]
[1721543578427,0.004,66835.0,66834.0,0.73465021]
[1721543579285,0.004,66835.0,66834.0,0.73765021]